fUSD/lending_fUSD_20260429
["ID","MTS","AMOUNT","RATE_DAILY","PERIOD"]
[421326521,1777437032966,-392.38384997,0.000107,2]
[421326522,1777437032978,-404.77304,0.000107,2]
[421326523,1777437032991,-268.95559825,0.000107,2]
[421326526,1777437039859,-337.05962658,0.000107,2]
[421326527,1777437039871,-1658.13479284,0.000107,2]
[421326528,1777437040212,-3093.41928878,0.000107,2]
[421326529,1777437040325,-648.97139316,0.000107,2]
[421326530,1777437040344,-15194.89871342,0.000107,2]
[421326531,1777437040454,-336.66652234,0.000107,2]
[421326532,1777437040467,-366.69709782,0.000107,2]
[421326667,1777437042934,-621.69315632,0.000107,2]
[421326668,1777437042991,-3736.57592517,0.000107,2]
[421326674,1777437045835,-427.98257089,0.000107,2]
[421326675,1777437045894,-2454.16723922,0.000107,2]
[421326676,1777437045907,-938.78645993,0.000107,2]
[421326712,1777438231860,-300.0,9.382e-05,2]
[421326713,1777438231871,-300.0,9.382e-05,2]
[421326714,1777438231882,-251.12712388,9.382e-05,2]
[421326715,1777438232074,-811.50471421,9.382e-05,2]
[421326716,1777438232087,-137.36816191,9.382e-05,2]
[421326731,1777438232395,-275.9827,9.383e-05,2]
[421326732,1777438232406,-4166.32192668,9.383e-05,2]
[421326733,1777438232439,-253.46543089,9.383e-05,2]
[421326734,1777438232451,-3544.55983964,9.383e-05,2]
[421326735,1777438232463,-5880.0,9.383e-05,2]
[421326737,1777438237935,-867.04626424,9.383e-05,2]
[421326738,1777438237948,-3544.04180875,9.383e-05,2]
[421326739,1777438239922,-557.49671702,9.383e-05,2]
[421326741,1777438239934,-2027.98034925,9.383e-05,2]
[421326742,1777438239945,-1553.52,9.383e-05,2]
[421326745,1777438240045,-1076.55582393,9.383e-05,2]
[421326746,1777438240063,-471.87366345,9.383e-05,2]
[421326749,1777438240144,-69817.30757615,9.383e-05,2]
[421326750,1777438240155,-250.0,9.408e-05,2]
[421326751,1777438240165,-250.0,9.448e-05,2]
[421326752,1777438240174,-300.0,9.481e-05,2]
[421326754,1777438240184,-300.0,9.481e-05,2]
[421326756,1777438240194,-2487.93964206,9.482e-05,2]
[421326758,1777438240204,-150.0,9.482e-05,2]
[421326760,1777438240214,-243.0,9.483e-05,2]
[421326762,1777438240224,-328.75,0.0001,2]
[421326764,1777438240234,-153.91169391,0.00010221,2]
[421326766,1777438240244,-318.0,0.0001032,2]
[421326768,1777438240255,-250.0,0.00010321,2]
[421326769,1777438240265,-299.99,0.00010321,2]
[421326770,1777438240276,-3695.27,0.00010321,2]
[421326771,1777438240287,-150.99,0.00010485,2]
[421326772,1777438240297,-4627.9,0.00010486,2]
[421326773,1777438240307,-2121.52,0.00010486,2]
[421326774,1777438240317,-155.43363069,0.000106,2]
[421326775,1777438240327,-195.85448941,0.000106,2]
[421326777,1777438240337,-296.83725568,0.000106,2]
[421326779,1777438240348,-271.8956919,0.000106,2]
[421326781,1777438240358,-288.28894319,0.000106,2]
[421326783,1777438240369,-184.90869876,0.000106,2]
[421326785,1777438240379,-261.80444552,0.000106,2]
[421326787,1777438240389,-242.86018791,0.000106,2]
[421326789,1777438240399,-255.34283172,0.000106,2]
[421326791,1777438240410,-291.16886119,0.000106,2]
[421326794,1777438240420,-522.82437115,0.000106,2]
[421326796,1777438240430,-577.47513539,0.000106,2]
[421326798,1777438240440,-569.31675202,0.000106,2]
[421326800,1777438240450,-5000.0,0.000106,2]
[421326802,1777438240461,-42534.0720838,0.00010649,2]
[421326804,1777438240471,-153.97383796,0.0001069,2]
[421326806,1777438240481,-500.0,0.00010699,2]
[421326808,1777438240497,-451.48719482,0.00010699,2]
[421326810,1777438240508,-500.0,0.00010699,2]
[421326812,1777438240519,-500.0,0.00010699,2]
[421326814,1777438240530,-500.0,0.00010699,2]
[421326816,1777438240542,-500.0,0.00010699,2]
[421326819,1777438240553,-386.31868168,0.00010699,2]
[421326821,1777438240563,-500.0,0.00010699,2]
[421326823,1777438240573,-500.0,0.00010699,2]
[421326825,1777438240585,-500.0,0.00010699,2]
[421326827,1777438240596,-500.0,0.00010699,2]
[421326829,1777438240607,-500.0,0.00010699,2]
[421326831,1777438240619,-496.40925089,0.00010699,2]
[421326833,1777438240630,-189.48363287,0.00010699,2]
[421326836,1777438240642,-250.0,0.00010699,2]
[421326838,1777438240653,-500.0,0.00010699,2]
[421326840,1777438240664,-500.0,0.00010699,2]
[421326842,1777438240675,-500.0,0.00010699,2]
[421326844,1777438240686,-55202.1492812,0.000107,2]
[421326846,1777438240700,-6491.07,0.000107,2]
[421326849,1777438240713,-535.41792625,0.000107,2]
[421326851,1777438240726,-187479.21133113,0.000107,2]
[421326854,1777438240744,-652.08200092,0.000107,2]
[421326856,1777438240757,-2458.50849633,0.000107,2]
[421326944,1777438243831,-24613.16922448,0.000107,2]
[421326946,1777438248148,-730.12479506,0.000107,2]
[421326947,1777438248160,-1005.76388373,0.000107,2]
[421326949,1777438248467,-7400.21198861,0.000107,2]
[421326950,1777438248521,-284.62501871,0.000107,2]
[421326951,1777438248533,-2000.0,0.000107,2]
[421326952,1777438248545,-847.40785623,0.000107,2]
[421326953,1777438248737,-646.0500007,0.000107,2]
[421326956,1777438249059,-319.08292986,0.000107,2]
[421326957,1777438249071,-438.9795645,0.000107,2]
[421327041,1777439124796,150.0,8.334e-05,2]
[421327042,1777439124870,150.0,8.334e-05,2]
[421327107,1777439432583,-150.0,8.797e-05,2]
[421327108,1777439432599,-250.0,8.947e-05,2]
[421327109,1777439432609,-250.0,9.08e-05,2]
[421327110,1777439432619,-1857.7401103,9.097e-05,2]
[421327111,1777439432631,-599.4218897,9.097e-05,2]
[421327112,1777439432641,-161.814,9.097e-05,2]
[421327113,1777439432652,-190.0,9.181e-05,2]
[421327114,1777439432662,-150.0,9.182e-05,2]
[421327115,1777439432672,-300.0,9.182e-05,2]
[421327116,1777439432681,-1102.0,9.182e-05,2]
[421327117,1777439432691,-272715.5747,9.183e-05,2]
[421327118,1777439432701,-207917.6973,9.183e-05,2]
[421327119,1777439432711,-269.0354,9.183e-05,2]
[421327120,1777439432721,-150.0,9.26e-05,2]
[421327121,1777439432731,-315.24608245,9.281e-05,2]
[421327122,1777439432741,-1029.0779948,9.382e-05,3]
[421327123,1777439432751,-9999.99,9.382e-05,2]
[421327124,1777439432761,-14096.0,9.382e-05,2]
[421327125,1777439432771,-9999.99,9.382e-05,2]
[421327126,1777439432782,-299.99,9.382e-05,2]
[421327127,1777439432792,-241.0,9.383e-05,2]
[421327128,1777439432802,-250.0,9.66e-05,2]
[421327129,1777439432812,-250.0,9.677e-05,2]
[421327130,1777439432822,-300.0,9.677e-05,2]
[421327131,1777439432832,-1343.8366078,0.0001,2]
[421327132,1777439432842,-3744.79791881,0.0001,2]
[421327133,1777439433193,-3078.81235221,0.0001,2]
[421327134,1777439433219,-3411.80513548,0.0001,2]
[421327135,1777439433229,-3390.11764823,0.0001,2]
[421327136,1777439433239,-161.57453005,0.0001,2]
[421327137,1777439433250,-184.93086184,0.0001,2]
[421327138,1777439433260,-180.79531558,0.0001,2]
[421327139,1777439433270,-187.08355963,0.0001,2]
[421327140,1777439433279,-151.0,0.0001,2]
[421327141,1777439433290,-500.0,0.0001,2]
[421327142,1777439433299,-151.0,0.0001,2]
[421327143,1777439433309,-500.0,0.0001,2]
[421327144,1777439433319,-151.0,0.0001,2]
[421327145,1777439433329,-500.0,0.0001,2]
[421327146,1777439433338,-151.0,0.0001,2]
[421327147,1777439433348,-500.0,0.0001,2]
[421327148,1777439433358,-151.0,0.0001,2]
[421327149,1777439433367,-500.0,0.0001,2]
[421327150,1777439433377,-151.0,0.0001,2]
[421327151,1777439433387,-500.0,0.0001,2]
[421327152,1777439433397,-151.0,0.0001,2]
[421327153,1777439433409,-500.0,0.0001,2]
[421327154,1777439433419,-151.0,0.0001,2]
[421327155,1777439433429,-500.0,0.0001,2]
[421327156,1777439433439,-151.0,0.0001,2]
[421327157,1777439433448,-500.0,0.0001,2]
[421327158,1777439433458,-151.0,0.0001,2]
[421327159,1777439433469,-500.0,0.0001,2]
[421327160,1777439433479,-500.0,0.0001,2]
[421327161,1777439433490,-151.0,0.0001,2]
[421327162,1777439433500,-500.0,0.0001,2]
[421327163,1777439433509,-500.0,0.0001,2]
[421327164,1777439433519,-500.0,0.0001,2]
[421327165,1777439433529,-500.0,0.0001,2]
[421327166,1777439433539,-500.0,0.0001,2]
[421327167,1777439433549,-500.0,0.0001,2]
[421327168,1777439433558,-500.0,0.0001,2]
[421327169,1777439433568,-500.0,0.0001,2]
[421327170,1777439433578,-500.0,0.0001,2]
[421327171,1777439433588,-500.0,0.0001,2]
[421327172,1777439433599,-500.0,0.0001,2]
[421327173,1777439433608,-255.0,0.000101,2]
[421327174,1777439433617,-420.0,0.000101,2]
[421327175,1777439433627,-4999.99,0.00010209,2]
[421327176,1777439433636,-150.99,0.00010209,2]
[421327177,1777439433646,-24999.99,0.00010209,2]
[421327178,1777439433656,-3198.05,0.00010209,2]
[421327179,1777439433665,-313.74,0.00010209,2]
[421327180,1777439433675,-499.99,0.00010209,2]
[421327181,1777439433684,-151.0,0.00010209,2]
[421327182,1777439433694,-151.0,0.00010209,2]
[421327183,1777439433704,-151.0,0.00010209,2]
[421327184,1777439433713,-151.0,0.00010209,2]
[421327185,1777439433723,-156.964417,0.00010209,2]
[421327186,1777439433732,-181.082529,0.00010209,2]
[421327187,1777439433742,-181.082529,0.00010209,2]
[421327188,1777439433751,-181.082529,0.00010209,2]
[421327189,1777439433761,-181.082529,0.00010209,2]
[421327190,1777439433772,-181.082529,0.00010219,2]
[421327191,1777439433782,-181.082529,0.00010219,2]
[421327192,1777439433793,-181.082529,0.00010219,2]
[421327193,1777439433804,-181.082529,0.00010219,2]
[421327194,1777439433814,-501.0,0.00010219,2]
[421327195,1777439433825,-201.5435752,0.0001038,2]
[421327196,1777439433837,-507.0,0.00010466,2]
[421327197,1777439433847,-415.1301,0.00010549,2]
[421327198,1777439433857,-2000.0,0.00010549,2]
[421327199,1777439433867,-5000.0,0.00010591,2]
[421327200,1777439433879,-3255.07237781,0.000106,2]
[421327201,1777439433890,-155.43363069,0.000106,2]
[421327202,1777439433901,-500.0,0.0001069,2]
[421327203,1777439433911,-270.42307717,0.0001069,2]
[421327204,1777439433920,-500.0,0.0001069,2]
[421327205,1777439433932,-500.0,0.0001069,2]
[421327206,1777439433944,-329536.1856769,0.00010691,2]
[421327207,1777439433954,-151.885904,0.00010691,2]
[421327208,1777439433964,-152.343614,0.00010691,2]
[421327209,1777439433974,-157.143464,0.00010691,2]
[421327210,1777439433984,-151.0,0.00010691,2]
[421327211,1777439433995,-181.082529,0.00010691,2]
[421327212,1777439434004,-181.082529,0.00010691,2]
[421327213,1777439434013,-181.082529,0.00010691,2]
[421327214,1777439434023,-181.082529,0.00010691,2]
[421327215,1777439434033,-256.0,0.000107,5]
[421327216,1777439434044,-312955.27975989,0.000107,2]
[421327217,1777439434345,-158657.58337076,0.000107,2]
[421327218,1777439434358,-6190.20660843,0.000107,2]
[421327219,1777439434479,-500.0,0.0001069,2]
[421327220,1777439434489,-597.48647562,0.0001069,2]
[421327221,1777439434499,-619.55209415,0.000107,2]
[421327222,1777439434511,-71601.3255665,0.000107,2]
[421327223,1777439434604,-277.70821029,0.000107,2]
[421327228,1777439438160,-713.71647197,9.083e-05,2]
[421327229,1777439438173,-546.14380015,9.083e-05,2]
[421327230,1777439438315,-237175.62048573,9.083e-05,2]
[421327231,1777439438369,-896.16431314,9.083e-05,2]
[421327232,1777439438381,-18129.74387373,9.083e-05,2]
[421327233,1777439438393,-1800.69231806,9.083e-05,2]
[421327234,1777439438424,-1418.8983774,9.083e-05,2]
[421327235,1777439438438,-10391.57037895,9.083e-05,2]
[421327248,1777439440649,-380.30947352,9.083e-05,2]
[421327249,1777439440916,-285.0,9.083e-05,2]
[421327250,1777439440969,-4546.78975405,9.083e-05,2]
[421327251,1777439440981,-3565.18647994,9.083e-05,2]
[421327272,1777439443295,-10501.48584787,9.083e-05,2]
[421327273,1777439443308,-117074.38582549,9.083e-05,2]
[421327274,1777439443318,-500.0,9.182e-05,2]
[421327275,1777439443329,-500.0,9.182e-05,2]
[421327276,1777439443339,-500.0,9.182e-05,2]
[421327277,1777439443348,-500.0,9.182e-05,2]
[421327278,1777439443358,-500.0,9.182e-05,2]
[421327279,1777439443369,-500.0,9.182e-05,2]
[421327280,1777439443379,-500.0,9.182e-05,2]
[421327281,1777439443388,-500.0,9.182e-05,2]
[421327282,1777439443398,-500.0,9.182e-05,2]
[421327283,1777439443408,-500.0,9.182e-05,2]
[421327284,1777439443418,-420.74043726,9.182e-05,2]
[421327285,1777439443429,-500.0,9.182e-05,2]
[421327286,1777439443440,-500.0,9.182e-05,2]
[421327287,1777439443450,-500.0,9.182e-05,2]
[421327288,1777439443461,-500.0,9.182e-05,2]
[421327289,1777439443471,-500.0,9.182e-05,2]
[421327290,1777439443481,-500.0,9.182e-05,2]
[421327291,1777439443490,-500.0,9.182e-05,2]
[421327292,1777439443501,-500.0,9.182e-05,2]
[421327293,1777439443511,-500.0,9.182e-05,2]
[421327294,1777439443521,-500.0,9.182e-05,2]
[421327295,1777439443532,-500.0,9.182e-05,2]
[421327296,1777439443542,-500.0,9.182e-05,2]
[421327297,1777439443551,-500.0,9.182e-05,2]
[421327298,1777439443561,-500.0,9.182e-05,2]
[421327299,1777439443571,-500.0,9.182e-05,2]
[421327300,1777439443581,-500.0,9.182e-05,2]
[421327301,1777439443591,-500.0,9.182e-05,2]
[421327302,1777439443601,-500.0,9.182e-05,2]
[421327303,1777439443611,-500.0,0.0001069,2]
[421327304,1777439443621,-500.0,0.0001069,2]
[421327305,1777439443631,-566.04103637,0.0001069,2]
[421327306,1777439443641,-358631.36494102,0.000107,2]
[421327307,1777439443652,-152.0,0.000107,7]
[421327308,1777439443662,-29472.20156698,0.000107,2]
[421327309,1777439443673,-151.0,0.000107,2]
[421327310,1777439443683,-151.0,0.000107,2]
[421327311,1777439443694,-171.0,0.000107,3]
[421327312,1777439443704,-151.0,0.000107,2]
[421327313,1777439443714,-158.0,0.000107,3]
[421327314,1777439443723,-408.0,0.000107,3]
[421327315,1777439443734,-181.082529,0.000107,2]
[421327317,1777439443744,-181.082529,0.000107,2]
[421327319,1777439443753,-181.082529,0.000107,2]
[421327320,1777439443764,-181.082529,0.000107,2]
[421327321,1777439443774,-152.0,0.00010704,7]
[421327323,1777439443784,-152.0,0.00010704,7]
[421327325,1777439443793,-161.0,0.0001071,2]
[421327326,1777439443805,-152.0,0.00010715,7]
[421327327,1777439443815,-152.0,0.00010736,7]
[421327328,1777439443824,-215.91,0.00010858,2]
[421327329,1777439443834,-150.0,0.00010891,2]
[421327330,1777439443844,-288.900934,0.00010892,2]
[421327331,1777439443853,-4003.17007592,0.000109,2]
[421327332,1777439443863,-500.0,0.00010959,2]
[421327333,1777439443875,-610.26,0.00010989,2]
[421327334,1777439443886,-6021.78948519,0.00011,2]
[421327335,1777439443898,-596.61846689,0.00011099,2]
[421327336,1777439443908,-596.61846688,0.00011099,2]
[421327337,1777439443918,-596.61846688,0.00011099,2]
[421327338,1777439443928,-596.61846688,0.00011099,2]
[421327339,1777439443938,-596.61846688,0.00011099,2]
[421327340,1777439443948,-596.61846688,0.00011099,2]
[421327341,1777439443957,-596.61846688,0.00011099,2]
[421327342,1777439443967,-311.0,0.0001111,2]
[421327343,1777439443976,-529.0,0.0001111,2]
[421327344,1777439443986,-187.32,0.0001122,2]
[421327345,1777439443995,-24203.73,0.00011281,2]
[421327346,1777439444005,-596.61846688,0.00011318,2]
[421327347,1777439444015,-3499.18878907,0.000114,2]
[421327348,1777439444025,-17025.59800648,0.000115,2]
[421327350,1777439444034,-151.0,0.000115,2]
[421327351,1777439444043,-181.082529,0.000115,2]
[421327352,1777439444053,-181.082529,0.000115,2]
[421327353,1777439444062,-181.082529,0.000115,2]
[421327354,1777439444072,-181.082533,0.000115,2]
[421327355,1777439444081,-596.61846688,0.00011609,2]
[421327356,1777439444091,-350.0,0.00011627,2]
[421327357,1777439444100,-10043.63720351,0.00011899,2]
[421327358,1777439444110,-8898.76828384,0.00011899,2]
[421327359,1777439444120,-596.61846688,0.000119,2]
[421327360,1777439444131,-198.36461731,0.000119,2]
[421327361,1777439444141,-15909.53701301,0.000119,2]
[421327362,1777439444152,-2032.6102108,0.000119,2]
[421327363,1777439444162,-152257.24135164,0.00012,2]
[421327364,1777439444200,-6213.47133035,0.00012,2]
[421327365,1777439444216,-1423.0623945,0.00012,2]
[421327366,1777439444228,-677.06083564,0.00012,2]
[421327367,1777439444240,-290.0,0.00012,2]
[421327368,1777439444251,-756.36239246,0.00012,2]
[421327369,1777439444263,-4637.26824568,0.00012,2]
[421327370,1777439444275,-7957.37731239,0.00012,2]
[421327372,1777439446322,-500.0,9.182e-05,2]
[421327373,1777439446332,-500.0,9.182e-05,2]
[421327374,1777439446343,-500.0,9.182e-05,2]
[421327375,1777439446352,-500.0,9.182e-05,2]
[421327376,1777439446363,-500.0,9.182e-05,2]
[421327377,1777439446374,-500.0,9.182e-05,2]
[421327378,1777439446384,-500.0,9.182e-05,2]
[421327379,1777439446394,-500.0,9.182e-05,2]
[421327380,1777439446403,-223.24769056,9.182e-05,2]
[421327381,1777439446416,-276.75230944,9.182e-05,2]
[421327382,1777439446425,-500.0,9.182e-05,2]
[421327383,1777439446435,-23.24775753,9.182e-05,2]
[421327384,1777439446643,-476.75224247,9.182e-05,2]
[421327385,1777439446654,-500.0,9.182e-05,2]
[421327386,1777439446663,-500.0,9.182e-05,2]
[421327387,1777439446674,-500.0,9.182e-05,2]
[421327388,1777439446684,-500.0,9.182e-05,2]
[421327389,1777439446694,-500.0,9.182e-05,2]
[421327390,1777439446705,-500.0,9.182e-05,2]
[421327391,1777439446715,-500.0,9.182e-05,2]
[421327392,1777439446726,-500.0,9.182e-05,2]
[421327393,1777439446736,-500.0,9.182e-05,2]
[421327394,1777439446746,-500.0,9.182e-05,2]
[421327395,1777439446755,-500.0,9.182e-05,2]
[421327396,1777439446764,-391.83241859,9.182e-05,2]
[421327397,1777439446773,-500.0,9.182e-05,2]
[421327398,1777439446782,-500.0,9.182e-05,2]
[421327399,1777439446792,-500.0,9.182e-05,2]
[421327400,1777439446802,-35.01133894,9.182e-05,2]
[421327401,1777439446820,-257.72629871,9.182e-05,2]
[421327402,1777439446834,-207.26236235,9.182e-05,2]
[421327403,1777439446844,-358.33763775,9.182e-05,2]
[421327404,1777439446858,-141.66236225,9.182e-05,2]
[421327405,1777439446869,-500.0,9.182e-05,2]
[421327406,1777439446881,-500.0,9.182e-05,2]
[421327407,1777439446906,-3363.17295184,0.00012,2]
[421327408,1777439446923,-1261.267356,0.00012,2]
[421327409,1777439446936,-8489.11541545,0.00012,2]
[421327410,1777439446951,-503850.42975205,0.00012,2]
[421327411,1777439446964,-9567.46598948,0.00012,2]
[421327413,1777439446977,-3110.30451518,0.00012,2]
[421327503,1777440145213,-161.814,8.901e-05,2]
[421327504,1777440145243,-1965.73,8.901e-05,2]
[421327505,1777440145272,-244.922,9.082e-05,2]
[421327506,1777440145330,-255.078,9.082e-05,2]
[421327507,1777440145389,-500.0,9.082e-05,2]
[421327508,1777440145423,-446.22872546,9.082e-05,2]
[421327509,1777440145457,-500.0,9.082e-05,2]
[421327510,1777440145493,-500.0,9.082e-05,2]
[421327511,1777440145527,-500.0,9.082e-05,2]
[421327512,1777440145635,-107.55254908,9.082e-05,2]
[421327513,1777440148085,-392.44745092,9.082e-05,2]
[421327514,1777440148121,-500.0,9.082e-05,2]
[421327515,1777440148155,-500.0,9.082e-05,2]
[421327516,1777440148189,-500.0,9.082e-05,2]
[421327517,1777440148223,-481.25728558,9.082e-05,2]
[421327518,1777440148254,-63.30437298,9.082e-05,2]
[421327519,1777440148618,-125.99178104,9.082e-05,2]
[421327520,1777440148648,-500.0,9.082e-05,2]
[421327521,1777440148678,-468.24053294,9.082e-05,2]
[421327522,1777440148707,-500.0,9.082e-05,2]
[421327523,1777440262493,442.36192062,9.082e-05,2]
[421327524,1777440277039,500.0,9.082e-05,2]
[421327525,1777440277089,527.76837306,9.082e-05,2]
[421327526,1777440421641,300.0,9.082e-05,2]
[421327527,1777440425490,41.41507836,9.082e-05,2]
[421327528,1777440425513,458.58492164,9.082e-05,2]
[421327529,1777440425549,512.36010782,9.082e-05,2]
[421327533,1777440541031,300.0,9.082e-05,2]
[421327553,1777440601158,300.0,9.082e-05,2]
[421327554,1777440623716,3429.06497054,8.983e-05,2]
[421327555,1777440623747,5000.01,8.983e-05,2]
[421327556,1777440628152,-3188.46462796,8.983e-05,2]
[421327557,1777440628199,-5000.01,8.983e-05,2]
[421327561,1777440632245,-477.65381675,8.983e-05,2]
[421327562,1777440632301,-290.80240393,8.983e-05,2]
[421327563,1777440632313,-719.62920142,8.983e-05,2]
[421327564,1777440632367,-688.78386516,8.983e-05,2]
[421327565,1777440632415,-385.37598275,8.983e-05,2]
[421327566,1777440632473,-136164.21655059,8.983e-05,2]
[421327567,1777440632484,-2453.89940424,8.983e-05,2]
[421327568,1777440632496,-2636.5859747,8.983e-05,2]
[421327569,1777440632508,-6503.47532576,8.983e-05,2]
[421327574,1777440638461,-547.94350527,8.983e-05,2]
[421327575,1777440638515,-380.07449687,8.983e-05,2]
[421327576,1777440638528,-748.97671534,8.983e-05,2]
[421327577,1777440638625,-258.6,8.983e-05,2]
[421327578,1777440638638,-383.736,8.983e-05,2]
[421327579,1777440638737,-1746.56751119,8.983e-05,2]
[421327580,1777440638751,-36984.69245172,8.983e-05,2]
[421327581,1777440638764,-48993.48432967,8.983e-05,2]
[421327582,1777440638776,-829.67010334,8.983e-05,2]
[421327583,1777440638789,-615.21547425,8.983e-05,2]
[421327687,1777440640943,-37088.53128855,8.983e-05,2]
[421327688,1777440640955,-162.61798079,9.26e-05,2]
[421327689,1777440640966,-420.0,9.99e-05,2]
[421327690,1777440640977,-250.0,9.991e-05,2]
[421327691,1777440640987,-250.0,9.991e-05,2]
[421327692,1777440640998,-151.0,0.0001,2]
[421327693,1777440641009,-6.65665305,0.0001,2]
[421327694,1777440641053,-144.34334695,0.0001,2]
[421327695,1777440641063,-500.0,0.0001,2]
[421327696,1777440641073,-151.0,0.0001,2]
[421327697,1777440641083,-500.0,0.0001,2]
[421327698,1777440641092,-151.0,0.0001,2]
[421327699,1777440641102,-500.0,0.0001,2]
[421327700,1777440641112,-151.0,0.0001,2]
[421327701,1777440641122,-500.0,0.0001,2]
[421327702,1777440641133,-500.0,0.0001,2]
[421327703,1777440641143,-500.0,0.0001,2]
[421327704,1777440641154,-500.0,0.0001,2]
[421327705,1777440641164,-500.0,0.0001,2]
[421327706,1777440641175,-500.0,0.0001,2]
[421327707,1777440641185,-500.0,0.0001,2]
[421327708,1777440641195,-3502.77381643,0.000109,2]
[421327709,1777440641206,-5325.1017193,0.00010988,2]
[421327710,1777440641219,-4674.8882807,0.00010988,2]
[421327711,1777440641228,-309.0,0.00010989,2]
[421327712,1777440641238,-150.0,0.00011,2]
[421327713,1777440641248,-239.0,0.00011033,5]
[421327714,1777440641259,-248.0,0.00011033,5]
[421327715,1777440641269,-4736.45444118,0.00011099,2]
[421327716,1777440641279,-4206.40168956,0.000113,5]
[421327717,1777440641292,-1322.59831044,0.000113,5]
[421327718,1777440641302,-250.0,0.00011682,2]
[421327719,1777440641312,-999.99,0.00011682,2]
[421327720,1777440641322,-152.0,0.00011792,7]
[421327721,1777440641332,-2000.0,0.0001189,2]
[421327722,1777440641348,-2000.0,0.0001189,2]
[421327723,1777440641358,-2000.0,0.0001189,2]
[421327724,1777440641368,-2000.0,0.0001189,2]
[421327725,1777440641378,-2000.0,0.0001189,2]
[421327726,1777440641388,-2000.0,0.0001189,2]
[421327727,1777440641398,-18076.21168956,0.000119,2]
[421327728,1777440641415,-1015.05237487,0.000119,2]
[421327734,1777440643509,-683.12818883,0.000119,2]
[421327735,1777440643672,-661.16272695,0.000119,2]
[421327736,1777440643726,-546.0,0.000119,2]
[421327761,1777440901165,328.0,8.982e-05,2]
[421327762,1777440961861,150.0,8.982e-05,2]
[421327763,1777440965480,500.0,8.982e-05,2]
[421327764,1777440965532,358.65207548,8.982e-05,2]
[421327765,1777440981545,238.41586605,8.982e-05,2]
[421327766,1777440992351,500.0,8.982e-05,2]
[421327767,1777440992399,219.43786114,8.982e-05,2]
[421327768,1777441051896,214.9230835,8.982e-05,2]
[421327769,1777441113936,185.97649594,8.982e-05,2]
[421327770,1777441124883,150.0,8.982e-05,2]
[421327771,1777441207579,244.0,8.983e-05,2]
[421327772,1777441288345,161.814,8.803e-05,2]
[421327773,1777441288382,1572.584,8.803e-05,2]
[421327774,1777441308205,176.20661789,8.883e-05,2]
[421327775,1777441308228,2099.07698211,8.883e-05,2]
[421327776,1777441354723,500.0,8.982e-05,2]
[421327777,1777441372517,500.0,8.982e-05,2]
[421327778,1777441387226,500.0,8.982e-05,2]
[421327779,1777441398628,500.0,8.982e-05,2]
[421327780,1777441410043,500.0,8.982e-05,2]
[421327781,1777441421511,400.93301789,8.982e-05,2]
[421327782,1777441421541,99.06698211,8.982e-05,2]
[421327783,1777441434412,500.0,8.982e-05,2]
[421327784,1777441434463,500.0,8.982e-05,2]
[421327785,1777441452196,500.0,8.982e-05,2]
[421327786,1777441466678,500.0,8.982e-05,2]
[421327787,1777441478184,500.0,8.982e-05,2]
[421327788,1777441489667,500.0,8.982e-05,2]
[421327789,1777441501447,500.0,8.982e-05,2]
[421327790,1777441505857,150.0,8.063e-05,2]
[421327791,1777441514628,500.0,8.982e-05,2]
[421327792,1777441514666,500.0,8.982e-05,2]
[421327793,1777441532427,168.36858278,8.982e-05,2]
[421327794,1777441547904,82.57443511,8.982e-05,2]
[421327795,1777441547934,417.42556489,8.982e-05,2]
[421327796,1777441560773,500.0,8.982e-05,2]
[421327805,1777441685883,500.0,8.982e-05,2]
[421327806,1777441685916,151.50261128,8.982e-05,2]